bitfinex/quotes_ETHUSD_20220119
["timestamp","ask_amount","ask_price","bid_price","bid_amount"]
[1642596791395,0.80049,3123.8,3123.6,2.722212]
[1642596799713,0.80049,3123.8,3123.7,1.5]
[1642596799915,0.80049,3123.8,3123.7,4.222212]
[1642596800314,0.80333212,3123.8,3123.7,4.222212]
[1642596801436,0.80333212,3123.8,3123.7,2.722212]
[1642596801737,0.80049,3123.8,3123.7,2.722212]
[1642596802346,0.80049,3123.8,3122.9,1.68864515]
[1642596802347,6.55,3123.7,3121.5,1.60098]
[1642596802544,6.55,3123.7,3121.4,4.02014949]
[1642596802545,0.09566507,3122.9,3121.4,4.02014949]
[1642596802747,0.09566507,3122.9,3121.1,4.0240914]
[1642596802748,0.01290771,3121.5,3121.1,4.0240914]
[1642596802949,0.461,3122.2,3121.5,0.00235869]
[1642596803342,2.85161834,3123.2,3121.6,0.80075]
[1642596803542,2.85161834,3123.2,3121.7,1.2206]
[1642596803543,3.31261834,3123.2,3121.7,1.2206]
[1642596803748,1.60152,3122.8,3121.7,1.22969477]
[1642596803942,0.461,3122.7,3121.8,0.00852635]
[1642596804340,0.80079,3122.6,3121.8,0.00852635]
[1642596804543,1.26179,3122.6,3121.8,0.00852635]
[1642596804787,1.26179,3122.6,3121.8,0.48899645]
[1642596804986,1.26179,3122.6,3121.8,0.78899645]
[1642596805185,1.26179,3122.6,3121.9,0.00795793]
[1642596805685,1.26179,3122.6,3122.0,0.80079]
[1642596806088,1.26179,3122.6,3122.1,0.00682108]
[1642596806889,1.26179,3122.6,3122.0,0.0073895]
[1642596807791,1.26179,3122.6,3122.2,0.80079]
[1642596807996,1.26179,3122.6,3122.0,0.0073895]
[1642596807997,1.60185,3122.4,3122.0,0.0073895]
[1642596808193,0.80091,3122.1,3121.5,2.40463869]
[1642596808639,0.80091,3122.1,3121.6,0.0096632]
[1642596808844,0.80091,3122.1,3121.7,0.80092]
[1642596809039,0.80091,3122.1,3122.0,1.1867267]
[1642596809438,0.80091,3122.1,3122.0,1.1941162]
[1642596809838,0.80091,3122.1,3122.0,0.0073895]
[1642596810238,0.80091,3122.1,3121.9,0.80875793]
[1642596810438,0.80091,3122.1,3122.0,0.0073895]
[1642596812996,0.80091,3122.1,3121.9,0.00795793]
[1642596813595,0.80091,3122.1,3121.8,0.00852635]
[1642596814197,0.80091,3122.1,3121.9,0.80088]
[1642596814496,0.80091,3122.1,3122.0,0.0073895]
[1642596818642,0.80091,3122.1,3121.8,0.30852635]
[1642596818842,0.80091,3122.1,3121.8,0.00852635]
[1642596819042,0.80091,3122.1,3121.9,0.00795793]
[1642596819247,0.80091,3122.1,3121.8,0.3]
[1642596819248,0.80091,3122.1,3121.8,0.30852635]
[1642596819543,0.80091,3122.1,3121.9,0.00795793]
[1642596821594,0.80091,3122.1,3121.9,0.80875793]
[1642596821995,0.80091,3122.1,3122.0,0.0073895]
[1642596834447,6.88747672,3122.1,3122.0,0.0073895]
[1642596834652,6.58747672,3122.1,3122.0,0.0073895]
[1642596835096,3.98513806,3122.1,3122.0,0.0073895]
[1642596835295,7.07550049,3122.1,3122.0,0.0073895]
[1642596835494,3.98513806,3122.1,3122.0,0.0073895]
[1642596835698,4.14543806,3122.1,3122.0,0.0073895]
[1642596835898,5.14543806,3122.1,3122.0,0.0073895]
[1642596836097,6.55,3122.0,3121.5,0.00235869]
[1642596836296,3.18422806,3121.9,3121.6,0.0022737]
[1642596836697,2.72322806,3121.8,3121.6,0.0022737]
[1642596837099,1.2621175,3121.9,3121.6,0.0022737]
[1642596837302,2.72351649,3121.8,3121.6,0.0022737]
[1642596839045,5.87357355,3121.7,3121.6,0.0022737]
[1642596840944,8.97301985,3121.7,3121.6,0.0022737]
[1642596841547,9.43401985,3121.7,3121.6,0.0022737]
[1642596841746,6.33457355,3121.7,3121.6,0.0022737]
[1642596842396,3.18457355,3121.7,3121.6,0.0022737]
[1642596846240,3.18441281,3121.7,3121.6,0.0022737]
[1642596846440,3.18441281,3121.7,3121.6,1.40793477]
[1642596846643,2.72341281,3121.7,3121.6,2.20888477]
[1642596846844,2.40296,3122.6,3121.6,2.8214183]
[1642596847043,2.72308565,3122.5,3121.7,1.0]
[1642596847246,0.00113684,3122.2,3121.7,1.00170527]
[1642596847444,0.00113684,3122.2,3121.8,0.00113685]
[1642596847748,0.00113684,3122.2,3121.6,2.0181946]
[1642596847749,0.00113684,3122.2,3121.7,0.00170527]
[1642596848144,0.80083,3122.1,3121.9,2.27376283]
[1642596848444,0.80083,3122.1,3121.9,0.6]
[1642596848646,0.80083,3122.1,3121.9,1.10082]
[1642596848846,0.80083,3122.1,3121.9,0.80082]
[1642596849044,0.80083,3122.1,3121.9,1.10082]
[1642596849446,0.00113684,3122.2,3121.9,1.10082]
[1642596849653,0.00113684,3122.2,3121.9,4.49731881]
[1642596849900,2.43003438,3123.3,3121.9,4.49731881]
[1642596849901,1.61999705,3123.3,3122.7,1.19808489]
[1642596850099,2.72268023,3123.2,3122.8,1.84552888]
[1642596850302,0.00454739,3123.0,3122.8,1.84552888]
[1642596850496,2.72268023,3122.9,3122.8,1.84552888]
[1642596850696,2.7266592,3122.9,3122.8,1.84552888]
[1642596850899,2.7266592,3122.9,3122.8,2.40152]
[1642596851100,2.7266592,3122.9,3122.8,1.60103]
[1642596852301,2.7266592,3122.9,3122.8,5.45654695]
[1642596852503,2.7266592,3122.9,3122.8,7.6357881]
[1642596852908,2.7266592,3122.9,3122.8,7.9357881]
[1642596853743,0.00397897,3122.9,3122.8,7.9357881]
[1642596854743,2.72636101,3122.9,3122.8,7.95783815]
[1642596855143,2.72636101,3122.9,3122.8,3.1752358]
[1642596856242,2.72636101,3122.9,3122.8,1.90103]
[1642596857043,0.00397897,3122.9,3122.8,1.90103]
[1642596857295,0.00397897,3122.9,3122.8,5.94430983]
[1642596857499,0.00397897,3122.9,3122.8,5.98407619]
[1642596857701,2.72641725,3122.9,3122.8,3.3862412]
[1642596857902,2.72641725,3122.9,3122.8,5.99158283]
[1642596858106,0.00397897,3122.9,3122.8,5.99158283]
[1642596861055,0.00397897,3122.9,3122.8,1.90103]
[1642596861447,0.00397897,3122.9,3122.8,1.60103]
[1642596861647,0.00397897,3122.9,3122.4,1.60135]
[1642596861648,0.00397897,3122.9,3122.6,0.8007]
[1642596861849,3.52336432,3122.8,3122.5,0.3]
[1642596862048,0.80414054,3122.8,3122.5,0.3]
[1642596862353,0.00284212,3122.7,3122.4,2.20135]
[1642596862751,0.0022737,3122.6,3122.5,4.15063]
[1642596864154,0.0022737,3122.6,3122.5,6.77997516]
[1642596864555,0.0022737,3122.6,3122.5,5.15063]
[1642596864795,0.0022737,3122.6,3122.5,4.15063]
[1642596864997,0.0022737,3122.6,3122.5,4.10063]
[1642596865396,0.0022737,3122.6,3122.5,4.40063]
[1642596866097,0.0022737,3122.6,3122.5,5.40063]
[1642596866295,0.0022737,3122.6,3122.5,0.80063]
[1642596867095,0.0022737,3122.6,3122.5,5.20063]
[1642596867699,0.0022737,3122.6,3122.5,7.74798886]
[1642596867899,0.0022737,3122.6,3122.5,8.04798886]
[1642596868302,0.0022737,3122.6,3122.5,5.50063]
[1642596868557,0.0022737,3122.6,3122.5,8.03781245]
[1642596868953,0.0022737,3122.6,3122.5,5.50063]
[1642596869955,0.0022737,3122.6,3122.5,1.10063]
[1642596870754,0.0022737,3122.6,3122.5,3.64773086]
[1642596872301,0.0022737,3122.6,3122.5,1.10063]
[1642596872702,0.0022737,3122.6,3122.4,1.60135]
[1642596872703,0.0022737,3122.6,3122.4,1.90135]
[1642596873104,0.00170527,3122.5,3122.4,2.20135]
[1642596873307,0.00170527,3122.5,3122.2,0.80081]
[1642596873514,0.00170527,3122.5,3122.0,0.00113684]
[1642596873515,0.0022737,3122.5,3122.0,0.00113684]
[1642596873706,0.00113685,3122.4,3122.0,0.00113684]
[1642596873907,2.72387589,3122.4,3121.7,2.16314093]
[1642596874104,2.72387589,3122.4,3121.6,1.60513054]
[1642596874306,2.72387589,3122.4,3121.8,0.00227369]
[1642596874505,2.72387589,3122.4,3121.8,1.08705094]
[1642596874905,2.72387589,3122.4,3121.9,0.00170527]
[1642596875506,3.52470589,3122.4,3121.9,0.30170527]
[1642596875805,0.80196685,3122.4,3121.9,1.10258527]
[1642596876066,0.80196685,3122.4,3122.0,0.00113684]
[1642596877253,0.80196685,3122.4,3122.1,0.80082]
[1642596877460,0.80196685,3122.4,3122.1,1.40082]
[1642596878858,0.80196685,3122.4,3122.1,0.6]
[1642596879060,0.80196685,3122.4,3122.0,0.00113684]
[1642596879360,0.80196685,3122.4,3121.9,0.30170527]
[1642596879798,0.80196685,3122.4,3122.0,0.00113684]
[1642596881604,0.80196685,3122.4,3122.1,0.80083]
[1642596882105,0.80196685,3122.4,3122.0,0.00113684]
[1642596883654,0.80196685,3122.4,3122.0,0.80199684]
[1642596883860,0.80196685,3122.4,3122.0,1.10199684]
[1642596887500,0.80196685,3122.4,3122.3,1.5255321]
[1642596887703,0.00113685,3122.4,3122.3,1.8255321]
[1642596887900,0.00113685,3122.4,3122.3,6.0755321]
[1642596889107,0.00113685,3122.4,3122.3,7.3755321]
[1642596889502,8.80266564,3123.4,3122.3,3.1255321]
[1642596889503,2.72245695,3123.3,3122.3,3.1255321]
[1642596889704,2.72245695,3123.3,3123.1,1.25106846]
[1642596889906,2.72245695,3123.3,3123.1,1.55106846]
[1642596889907,2.72757276,3123.3,3123.1,1.55106846]
[1642596890103,2.72245695,3123.2,3123.1,1.85106846]
[1642596890703,2.72245695,3123.2,3123.1,1.55106846]
[1642596891656,2.72245695,3123.2,3123.1,2.35155846]
[1642596891848,2.72245695,3123.2,3123.1,0.80049]
[1642596892046,2.72245695,3123.2,3123.1,1.10049]
[1642596893555,2.72245695,3123.2,3122.7,1.60117]
[1642596893753,4.32373695,3123.2,3122.7,1.60117]
[1642596893955,2.72643591,3123.1,3122.7,2.20117]
[1642596894259,2.72586749,3123.0,3122.8,0.80058]
[1642596894454,2.72586749,3123.0,3122.9,1.35652783]
[1642596894802,2.72245695,3123.0,3122.9,1.95652783]
[1642596895003,2.72245695,3123.4,3122.9,1.95652783]
[1642596895206,2.72245695,3123.3,3122.9,1.95652783]
[1642596895406,2.72245695,3123.2,3123.0,0.80055]
[1642596895607,2.72245695,3123.1,3123.0,0.80055]
[1642596895806,2.72643591,3123.1,3123.0,0.80055]
[1642596896006,2.72757276,3123.1,3123.0,0.80055]
[1642596896409,2.72757276,3123.1,3123.0,1.80055]
[1642596896608,0.00511581,3123.1,3123.0,1.80055]
[1642596897609,0.00511581,3123.1,3123.0,1.92855]
[1642596899763,0.00511581,3123.1,3123.0,5.17855]
[1642596901367,2.72728252,3123.1,3123.0,5.17855]
[1642596901768,0.00511581,3123.1,3123.0,5.17855]
[1642596902403,0.00511581,3123.1,3123.0,4.17855]
[1642596903207,0.00511581,3123.1,3123.0,4.05055]
[1642596903608,0.00511581,3123.1,3123.0,4.65055]
[1642596904407,0.00511581,3123.1,3123.0,5.65055]
[1642596906049,0.00511581,3123.1,3123.0,5.77855]
[1642596907258,6.4048,3123.6,3123.2,0.4801883]
[1642596907457,2.72189611,3123.5,3123.3,0.92835]
[1642596907654,0.00113685,3123.5,3123.3,0.92835]
[1642596907856,0.00113685,3123.5,3123.4,1.54371331]
[1642596908254,0.00113685,3123.5,3123.4,2.14371331]
[1642596908456,2.72302691,3123.5,3123.4,2.14371331]
[1642596908655,2.72302691,3123.5,3123.4,3.14371331]
[1642596908959,6.4048,3123.6,3123.4,7.44371331]
[1642596909158,6.4048,3123.6,3123.5,7.68917]
[1642596909359,7.45,3124.2,3123.6,6.55]
[1642596909563,3.9937,3124.9,3123.6,6.55]
[1642596909564,1.74799705,3124.9,3123.7,7.8111]
[1642596909815,15.74493976,3125.0,3123.7,7.8111]
[1642596909816,4.9893,3125.0,3124.8,1.45836488]
[1642596910015,4.9893,3125.0,3124.8,2.05836488]
[1642596910210,0.00795793,3124.9,3124.8,2.05836488]
[1642596910413,0.00795793,3124.9,3124.8,2.2]
[1642596911009,0.00795793,3124.9,3124.8,0.6]
[1642596911213,0.00795793,3124.9,3124.3,1.0]
[1642596911214,0.80812793,3124.9,3124.3,1.0]
[1642596911409,0.80812793,3124.9,3124.4,1.90026]
[1642596911609,0.0073895,3124.8,3124.4,2.90026]
[1642596911910,0.00682108,3124.7,3124.4,3.20026]
[1642596912211,0.00625266,3124.6,3124.4,1.6]
[1642596912428,0.00625266,3124.6,3124.5,0.80012]
[1642596912615,1.25,3125.0,3124.5,0.80012]
[1642596913013,0.00795793,3124.9,3124.5,0.80012]
[1642596913213,0.00795793,3124.9,3124.4,0.6]
[1642596913415,0.0073895,3124.8,3124.5,0.3]
[1642596913651,0.128,3124.7,3124.5,0.80013]
[1642596913851,0.13482108,3124.7,3124.5,0.80013]
[1642596914051,0.00625266,3124.6,3124.5,1.80013]
[1642596914252,0.00625266,3124.6,3124.5,0.80013]
[1642596914455,0.00625266,3124.6,3124.5,1.80013]
[1642596915055,0.00625266,3124.6,3124.5,0.80013]
[1642596918504,0.00625266,3124.6,3124.5,3.70013]
[1642596918903,0.00625266,3124.6,3124.5,4.70013]
[1642596919304,0.00625266,3124.6,3124.5,3.70013]
[1642596920209,0.00625266,3124.6,3124.5,0.80013]
[1642596920404,0.00625266,3124.6,3124.5,1.80013]
[1642596921453,0.00625266,3124.6,3124.5,4.38179189]
[1642596921653,0.00625266,3124.6,3124.5,1.80013]
[1642596923055,0.00625266,3124.6,3124.4,0.6]
[1642596923258,0.00625266,3124.6,3123.9,1.1916]
[1642596923456,0.00568423,3124.5,3123.9,1.1916]
[1642596923859,0.128,3124.6,3123.9,1.1916]
[1642596923860,0.00511581,3124.4,3123.9,1.1916]
[1642596924059,0.00511581,3124.4,3123.8,1.60055]
[1642596924358,0.00454739,3124.3,3123.8,3.95169815]
[1642596924555,0.00454739,3124.3,3123.8,5.25169815]
[1642596924803,0.00397896,3124.2,3123.8,5.25169815]
[1642596925205,0.128,3124.6,3123.8,5.25169815]
[1642596925206,0.00341054,3124.1,3123.8,5.25169815]
[1642596925607,2.72148102,3124.5,3123.8,5.25169815]
[1642596925608,0.00284212,3124.0,3123.8,5.25169815]
[1642596926110,0.00227369,3123.9,3123.8,5.25169815]
[1642596926311,0.00227369,3123.9,3123.8,3.20055]
[1642596926709,0.00227369,3123.9,3123.8,5.80644524]
[1642596927111,0.00227369,3123.9,3123.8,6.92304279]
[1642596927710,0.00227369,3123.9,3123.8,8.63061932]
[1642596929454,0.128,3124.6,3123.9,5.9]
[1642596929653,1.2055,3124.8,3124.4,1.18460525]
[1642596929853,0.128,3124.9,3124.4,1.18460525]
[1642596930053,0.128,3124.9,3124.4,1.78460525]
[1642596930253,0.00511581,3124.8,3124.4,1.78460525]
[1642596930655,0.00454739,3124.7,3124.5,1.60038]
[1642596930856,0.00454739,3124.7,3124.6,2.67181259]
[1642596931053,0.128,3125.2,3124.6,0.6]
[1642596931456,0.00511581,3124.8,3124.7,3.05921876]
[1642596931659,0.00511581,3124.8,3124.7,3.35921876]
[1642596931857,0.00511581,3124.8,3124.7,4.45927876]
[1642596932705,0.00511581,3124.8,3124.7,4.15927876]
[1642596933111,0.00511581,3124.8,3124.7,1.5801053]
[1642596933810,0.00511581,3124.8,3124.7,5.47240672]
[1642596934207,0.00511581,3124.8,3124.7,5.60040672]
[1642596934408,0.00511581,3124.8,3124.7,1.52806]
[1642596934609,0.00511581,3124.8,3124.7,1.40006]
[1642596934807,0.00511581,3124.8,3124.7,5.48067971]
[1642596935408,0.00511581,3124.8,3124.7,2.8800774]
[1642596936249,0.00511581,3124.8,3124.7,5.46606605]
[1642596936948,0.00511581,3124.8,3124.7,2.8800774]
[1642596937552,0.00511581,3124.8,3124.7,5.47535963]
[1642596937953,0.00511581,3124.8,3124.7,2.8800774]
[1642596939812,0.00511581,3124.8,3124.7,5.44687279]
[1642596940014,0.00511581,3124.8,3124.7,5.48932718]
[1642596941015,0.00511581,3124.8,3124.7,5.44990667]
[1642596941216,0.00014581,3124.8,3124.7,2.8800774]
[1642596941416,1.16462581,3125.0,3124.7,5.46238862]
[1642596941615,1.16462581,3125.0,3124.9,2.7150555]
[1642596941818,1.16462581,3125.0,3124.9,7.00741186]
[1642596942017,1.16576266,3125.0,3124.9,7.30741186]
[1642596942416,1.16576266,3125.0,3124.9,8.30741186]
[1642596943016,1.16576266,3125.0,3124.9,5.5590603]
[1642596943217,1.16576266,3125.0,3124.9,8.18557603]
[1642596943421,1.11576266,3125.0,3124.9,5.5590603]
[1642596944069,1.11576266,3125.0,3124.9,8.13515359]
[1642596944269,1.11576266,3125.0,3124.9,5.5590603]
[1642596944470,1.11576266,3125.0,3124.9,8.21161607]
[1642596944670,1.11576266,3125.0,3124.9,5.5590603]
[1642596944871,1.11576266,3125.0,3124.9,4.5590603]
[1642596945172,1.11576266,3125.0,3124.9,3.3150555]
[1642596946272,1.11576266,3125.0,3124.9,5.88266869]
[1642596947073,1.11576266,3125.0,3124.9,6.88266869]
[1642596948502,1.11576266,3125.0,3124.9,4.3150555]
[1642596949205,1.11576266,3125.0,3124.9,6.88783621]
[1642596949403,3.83652207,3125.0,3124.9,6.88783621]
[1642596950807,1.43659207,3125.0,3124.9,6.28783621]
[1642596951059,1.2078,3125.4,3124.9,6.27786384]
[1642596951264,0.128,3125.5,3124.9,6.88040888]
[1642596951454,0.00170527,3125.3,3125.0,1.79997]
[1642596951660,0.00170527,3125.3,3125.1,4.18141582]
[1642596951859,0.00113685,3125.2,3125.1,2.19992]
[1642596952259,0.00284212,3125.2,3125.1,2.19992]
[1642596953059,0.00284212,3125.2,3125.1,2.99991]
[1642596955104,0.00284212,3125.2,3125.1,1.39999]
[1642596955904,0.00284212,3125.2,3125.1,0.6]
[1642596956305,0.00284212,3125.2,3125.1,0.3]
[1642596956508,0.00284212,3125.2,3125.0,0.6]
[1642596957611,0.13999933,3125.1,3124.7,1.60012]
[1642596957812,0.13999933,3125.1,3123.7,0.1208]
[1642596958009,0.30029933,3125.1,3124.8,0.00113685]
[1642596958213,6.7103,3124.9,3124.8,0.00113685]
[1642596958412,6.7103,3124.9,3124.0,0.00568423]
[1642596958413,13.6994,3124.9,3124.0,0.00568423]
[1642596958682,1.62711081,3124.6,3124.0,0.00568423]
[1642596958870,1.62711081,3124.6,3123.8,2.07164789]
[1642596958871,0.20963354,3124.5,3123.8,1.33734328]
[1642596959074,0.128,3124.5,3124.1,0.00511581]
[1642596959269,0.128,3124.6,3123.9,0.00625266]
[1642596959767,1.75511081,3124.6,3123.9,0.00625266]
[1642596960171,0.428,3124.6,3123.9,0.00625266]
[1642596960371,2.58779771,3124.5,3123.9,0.00625266]
[1642596960571,0.128,3124.4,3123.6,0.00795793]
[1642596961172,0.128,3124.4,3123.6,2.5997011]
[1642596961372,0.128,3124.7,3124.1,1.47858853]
[1642596961580,0.128,3124.7,3124.1,3.27060001]
[1642596961775,0.128,3124.8,3124.2,0.00454739]
[1642596962606,0.128,3124.8,3124.2,0.80479739]
[1642596962907,0.128,3124.8,3124.3,0.00397896]
[1642596965311,8.15521081,3124.9,3124.3,0.00397896]
[1642596965608,6.5281,3124.9,3124.3,0.00397896]
[1642596965809,8.15521081,3124.9,3124.3,0.00397896]
[1642596968058,0.8002989,3124.8,3124.3,0.00397896]
[1642596968258,0.0989308,3124.6,3124.3,0.00397896]
[1642596968460,0.0989308,3124.6,3123.9,0.00625266]
[1642596968461,1.62711081,3124.5,3123.9,0.00625266]
[1642596968660,0.09541266,3124.3,3124.0,0.00568423]
[1642596968860,0.08688795,3124.3,3123.6,0.00795793]
[1642596969060,0.08688795,3124.3,3123.7,2.1637408]
[1642596969263,0.128,3124.5,3123.7,2.1637408]
[1642596969460,0.128,3124.5,3123.8,0.00682108]
[1642596969661,0.128,3124.5,3123.8,1.86832473]
[1642596970108,0.128,3124.6,3123.9,0.00625266]
[1642596970305,0.9283469,3124.6,3123.9,0.00625266]
[1642596970505,1.7286969,3124.6,3123.9,0.00625266]
[1642596970906,2.71502089,3124.5,3123.9,0.00625266]
[1642596973112,2.71502089,3124.5,3124.0,0.80031]
[1642596973313,2.71502089,3124.5,3123.9,0.30625266]
[1642596973555,2.71502089,3124.5,3124.1,0.00511581]
[1642596973757,2.71502089,3124.5,3124.0,0.00568423]
[1642596973958,1.6008371,3124.4,3124.0,0.00568423]
[1642596974157,2.71502089,3124.3,3124.0,0.00568423]
[1642596974858,2.71502089,3124.3,3123.9,0.00625266]
[1642596975058,2.71502089,3124.3,3123.7,0.0073895]
[1642596975257,2.71502089,3124.3,3123.6,0.00795793]
[1642596976062,2.71502089,3124.3,3123.7,0.80036]
[1642596976263,2.71502089,3124.2,3123.7,0.80036]
[1642596976463,2.71502089,3124.1,3123.7,0.80036]
[1642596976664,1.6253,3124.8,3123.7,0.80036]
[1642596976665,2.71502089,3124.0,3123.7,1.1077495]
[1642596976971,0.128,3124.7,3123.8,1.60049]
[1642596977322,2.7150348,3124.6,3123.9,0.30625266]
[1642596977516,2.7150348,3124.5,3124.1,0.80024]
[1642596977820,2.7150348,3124.4,3124.2,0.00454739]
[1642596978014,1.7533,3124.8,3124.2,0.00454739]
[1642596978015,2.7150348,3124.7,3124.2,0.00454739]
[1642596978215,2.7150348,3124.6,3124.2,0.00454739]
[1642596978413,2.7150348,3124.5,3124.2,0.00454739]
[1642596978616,2.7150348,3124.4,3124.2,0.00454739]
[1642596978815,2.7150348,3124.3,3124.2,0.00454739]
[1642596979014,2.7150348,3124.7,3124.2,0.00454739]
[1642596980216,2.7150348,3124.7,3124.3,0.80023]
[1642596980616,2.7150348,3124.7,3124.4,0.00341054]
[1642596982167,0.128,3124.6,3124.2,0.00454739]
[1642596982362,2.7150348,3124.5,3123.9,0.00625266]
[1642596982862,2.7150348,3124.4,3123.9,0.00625266]
[1642596983061,0.128,3124.7,3123.9,0.00625266]
[1642596983062,2.7150348,3124.3,3123.9,0.00625266]
[1642596983263,2.7150348,3124.2,3123.8,0.00682108]
[1642596983464,2.7150348,3124.1,3123.8,0.00682108]
[1642596983662,0.128,3124.5,3123.6,0.00795793]
[1642596983663,2.7150348,3124.0,3123.6,0.00795793]
[1642596983863,0.8004268,3124.4,3123.6,0.00795793]
[1642596983864,2.7150348,3123.9,3123.6,0.00795793]
[1642596984064,0.8004268,3124.4,3123.6,0.00795793]
[1642596984263,2.72125928,3124.3,3123.6,0.00795793]
[1642596985118,4.32216158,3124.3,3123.6,0.00795793]
[1642596985314,2.84925928,3124.2,3123.6,0.00795793]
[1642596985514,2.72125928,3124.1,3123.5,0.00852635]
[1642596985714,2.84925928,3124.0,3123.3,0.0096632]
[1642596985914,1.0,3124.2,3123.3,2.88799888]
[1642596985915,2.72125928,3123.9,3123.3,2.88799888]
[1642596986216,2.72125928,3123.8,3123.3,0.0096632]
[1642596986415,2.72125928,3123.7,3123.4,0.00909477]
[1642596986617,0.128,3124.1,3123.4,0.00909477]
[1642596986816,0.128,3124.1,3123.3,2.88799888]
[1642596986817,2.71360828,3124.0,3123.3,2.88799888]
[1642596987017,2.71360828,3124.0,3123.3,3.68848888]
[1642596987220,2.71360828,3124.0,3123.4,0.00909477]
[1642596988755,2.71360828,3124.0,3123.5,0.80042]
[1642596988962,2.71360828,3124.0,3123.4,0.00909477]
[1642596989159,4.46290828,3123.9,3123.6,0.00795793]
[1642596989360,3.46290828,3123.9,3123.1,0.01080005]
[1642596989559,3.46290828,3123.9,3122.9,2.89027257]
[1642596989560,2.71360828,3123.8,3122.9,2.89027257]
[1642596989762,2.71360828,3123.8,3123.0,0.01136847]
[1642596989763,0.128,3123.7,3123.0,0.01136847]
[1642596989957,2.71360828,3123.6,3123.0,0.01136847]
[1642596990161,0.128,3123.5,3122.9,2.89027257]
[1642596990365,0.461,3123.8,3123.0,0.80057]
[1642596990366,2.71360828,3123.4,3123.0,0.80057]
[1642596990662,0.9285944,3123.7,3123.0,0.81193847]
[1642596990862,2.72163801,3123.6,3123.1,0.01080005]
[1642596992617,2.72163801,3123.6,3123.1,0.81132005]
[1642596992817,0.128,3123.8,3123.1,0.81132005]
[1642596993016,2.7214424,3123.7,3123.2,0.01023162]
[1642596993715,2.7214424,3123.7,3123.1,2.87753539]
[1642596993716,2.7214424,3123.7,3123.1,0.31080005]
[1642596993918,1.2006,3123.9,3123.2,3.57536873]
[1642596994217,1.2006,3123.9,3123.3,0.0096632]
[1642596994218,2.7214074,3123.8,3123.3,0.0096632]
[1642596994617,2.7214074,3123.8,3123.3,0.8100932]
[1642596995022,2.7214074,3123.8,3123.4,0.00909477]
[1642596998366,0.128,3123.7,3123.3,0.0096632]
[1642596998564,2.7214074,3123.6,3122.9,0.01193689]
[1642596998765,0.128,3123.5,3122.9,0.01193689]
[1642596999367,2.72161205,3123.4,3122.9,0.01193689]
[1642596999568,2.72161205,3123.4,3122.8,0.01250532]
[1642596999812,2.72161205,3123.4,3122.7,0.01307374]
[1642597001412,2.72161205,3123.4,3122.7,0.81370374]
[1642597001613,3.52226955,3123.4,3122.7,0.81370374]
[1642597001812,2.72161205,3123.3,3122.8,0.01250532]
[1642597002012,2.84961205,3123.2,3122.8,0.01250532]
[1642597002215,0.128,3123.4,3122.8,0.01250532]
[1642597002413,2.72180442,3123.3,3122.8,0.01250532]
[1642597002917,2.72178252,3123.2,3122.8,0.01250532]
[1642597003113,0.128,3123.4,3122.8,0.01250532]
[1642597003315,2.721755,3123.3,3122.8,0.01250532]
[1642597003557,2.721755,3123.3,3122.9,0.80058]
[1642597003757,2.721755,3123.3,3122.9,1.10058]
[1642597003961,0.9285736,3123.6,3123.0,0.01136847]
[1642597004162,2.7216815,3123.5,3123.0,0.01136847]
[1642597006165,3.5223315,3123.5,3123.0,0.01136847]
[1642597006364,3.5223391,3123.4,3123.0,0.01136847]
[1642597006564,2.7216815,3123.3,3123.0,0.01136847]
[1642597008617,2.7216815,3123.3,3122.7,0.01307374]
[1642597008817,2.7216815,3123.3,3122.6,0.01364216]
[1642597008818,0.8006522,3123.2,3122.6,0.01364216]
[1642597009220,2.72195385,3123.1,3122.6,0.01364216]
[1642597009620,2.72195385,3123.0,3122.4,0.01477901]
[1642597009823,0.128,3123.3,3122.4,0.01477901]
[1642597010022,2.72203257,3123.2,3122.4,0.01477901]
[1642597010320,2.72203257,3123.2,3122.3,0.01534743]
[1642597010520,0.8007257,3123.0,3122.3,0.01534743]
[1642597010728,0.128,3123.1,3122.3,0.01534743]
[1642597010923,2.72206653,3123.0,3122.3,0.01534743]
[1642597011555,0.8007448,3122.9,3122.3,0.01534743]
[1642597012762,0.128,3122.8,3122.3,0.01534743]
[1642597012961,0.8008027,3122.7,3122.3,0.01534743]
[1642597013163,0.128,3122.6,3122.3,0.01534743]
[1642597013364,0.128,3122.6,3122.2,0.01591586]
[1642597013863,0.128,3122.6,3122.1,0.01648428]
[1642597014470,0.8008368,3122.5,3122.1,0.01648428]
[1642597014671,5.6868845,3122.4,3122.1,0.01648428]
[1642597014912,5.6868845,3122.4,3122.1,8.428e-05]
[1642597014913,2.8504426,3122.3,3122.1,8.428e-05]
[1642597015113,2.8504426,3122.3,3121.1,3.5]
[1642597015114,4.2,3122.1,3121.1,3.5]
[1642597015316,5.89983335,3122.0,3121.1,0.00568423]
[1642597015517,0.128,3122.0,3121.1,0.00568423]
[1642597015717,0.1603,3122.0,3121.1,0.00568423]
[1642597015918,0.128,3121.9,3121.1,0.00568423]
[1642597016215,0.92903,3121.9,3121.1,0.80670423]
[1642597016615,0.92903,3121.9,3121.2,0.00511581]
[1642597016816,0.128,3121.9,3121.2,0.00511581]
[1642597017217,0.128,3121.9,3121.3,0.80095]
[1642597017419,0.128,3122.0,3121.3,0.80095]
[1642597017617,1.12645257,3122.3,3121.4,0.00397896]
[1642597018019,1.12645257,3122.3,3121.4,0.30397896]
[1642597018218,1.12645257,3122.3,3121.2,0.00511581]
[1642597018421,1.12645257,3122.3,3121.1,1.8002]
[1642597018422,1.12645257,3122.3,3121.5,0.00341054]
[1642597018660,0.8008868,3122.2,3121.2,1.60680581]
[1642597019060,0.8008868,3122.2,3121.3,0.00454739]
[1642597019259,0.9288868,3122.2,3121.3,0.00454739]
[1642597019670,0.80094,3122.1,3121.3,0.00454739]
[1642597019858,0.128,3122.0,3121.3,0.00454739]
[1642597020061,0.8009724,3121.9,3121.3,0.00454739]
[1642597023718,0.928924,3122.1,3121.4,0.80095]
[1642597023914,0.800924,3122.1,3121.4,0.80095]
[1642597024113,0.800924,3122.1,3121.5,0.00341054]
[1642597024715,3.37585174,3122.0,3121.5,0.00341054]
[1642597024922,3.37585174,3122.0,3121.3,0.00454739]
[1642597024923,0.8010404,3121.9,3121.3,0.00454739]
[1642597025115,0.589,3121.8,3121.2,0.00511581]
[1642597025314,0.589,3121.8,3120.9,0.00682108]
[1642597025917,0.589,3121.8,3120.9,2.76623808]
[1642597026184,1.39013,3121.8,3120.9,2.76623808]
[1642597026383,1.39013,3121.8,3121.0,0.00625266]
[1642597026579,0.8011238,3121.7,3121.0,0.00625266]
[1642597026779,1.2621238,3121.7,3121.0,0.00625266]